bitfinex-derivatives/quotes_SOLF0:USTF0_20250202
["timestamp","ask_amount","ask_price","bid_price","bid_amount"]
[1738519208836,4.9313,202.92,202.9,0.03234239]
[1738519209338,4.9331,202.85,202.79,2.8818]
[1738519209542,27.01381573,202.94,202.79,2.8818]
[1738519209746,27.01381573,202.94,202.89,9.052e-05]
[1738519210041,31.94561573,202.9,202.89,9.052e-05]
[1738519210236,32.93381573,202.9,202.78,41.59604275]
[1738519210845,5.92,202.9,202.78,41.59604275]
[1738519211143,4.9344,202.79,202.78,41.59604275]
[1738519211343,27.01381573,202.91,202.78,41.59604275]
[1738519211539,0.03623552,202.86,202.82,0.03720244]
[1738519212042,27.01381573,203.03,202.82,0.03720244]
[1738519212235,27.01381573,202.99,202.82,0.03720244]
[1738519212440,27.01381573,202.95,202.79,3.1301]
[1738519212643,27.01381573,202.99,202.79,3.1301]
[1738519213043,27.01381573,202.95,202.79,3.1301]
[1738519213442,0.03474043,202.91,202.79,3.1301]
[1738519213843,0.03474043,202.91,202.85,0.03694204]
[1738519213844,4.9327,202.87,202.85,0.03694204]
[1738519214941,27.01381573,202.87,202.7,8.9961]
[1738519215546,4.9352,202.78,202.7,8.9961]
[1738519216441,4.9352,202.78,202.75,0.03220075]
[1738519216640,4.9355,202.76,202.75,0.03220075]
[1738519216947,27.04614528,202.79,202.58,4.9398]
[1738519217143,4.9378,202.67,202.59,0.98721555]
[1738519217344,27.01381573,202.75,202.59,0.98721555]
[1738519217546,27.01381573,202.84,202.59,0.98721555]
[1738519217547,4.9391,202.62,202.59,0.98721555]
[1738519218051,27.01381573,202.75,202.59,0.98721555]
[1738519218246,4.9381,202.66,202.59,0.98721555]
[1738519218441,0.03124518,202.63,202.59,0.98721555]
[1738519218646,32.85381573,202.79,202.57,27.01381573]
[1738519218845,27.01381573,202.83,202.61,27.01381573]
[1738519219042,27.01381573,202.83,202.65,27.01381573]
[1738519219347,30.95381573,202.83,202.65,27.01381573]
[1738519219543,30.95381573,202.83,202.61,27.01381573]
[1738519219750,30.95381573,202.83,202.61,31.95291573]
[1738519219954,0.03320428,202.76,202.72,8.16e-06]
[1738519220143,27.01381573,202.75,202.72,8.16e-06]
[1738519220449,27.01381573,202.75,202.55,3.0239]
[1738519220653,27.01381573,202.71,202.55,3.0239]
[1738519221043,27.01381573,202.73,202.54,9.2157]
[1738519221243,27.01381573,202.66,202.54,9.2157]
[1738519221446,0.0321981,202.65,202.61,4.607e-05]
[1738519221749,31.95281573,202.62,202.61,4.607e-05]
[1738519222049,27.01381573,202.62,202.46,2.9917]
[1738519222650,4.9425,202.48,202.46,2.9917]
[1738519222843,0.03460207,202.56,202.52,4.52e-05]
[1738519223150,27.01381573,202.54,202.38,0.90739499]
[1738519223446,27.01381573,202.54,202.39,4.9445]
[1738519223645,27.01381573,202.58,202.37,27.01381573]
[1738519223842,27.01381573,202.54,202.37,6.2313]
[1738519224046,27.01381573,202.54,202.38,0.90767571]
[1738519224247,4.9422,202.49,202.45,0.03448923]
[1738519224448,0.03456503,202.5,202.45,0.03448923]
[1738519224650,0.03456503,202.5,202.37,6.2313]
[1738519224845,4.9429,202.46,202.37,6.2313]
[1738519225046,27.01381573,202.54,202.45,0.03653803]
[1738519225352,4.9415,202.52,202.45,0.03653803]
[1738519225548,0.03701385,202.44,202.37,33.24511573]
[1738519225849,27.01381573,202.58,202.37,33.24511573]
[1738519226045,27.01381573,202.58,202.46,0.03561702]
[1738519226547,27.01381573,202.62,202.46,0.03561702]
[1738519226955,27.01381573,202.58,202.46,0.03561702]
[1738519227148,0.03662998,202.56,202.38,0.90759349]
[1738519227349,0.03662998,202.56,202.41,27.01381573]
[1738519227543,27.01381573,202.66,202.52,0.03327418]
[1738519228046,0.03653946,202.51,202.41,27.01381573]
[1738519228249,27.01381573,202.62,202.41,27.01381573]
[1738519228448,27.01381573,202.66,202.53,4.9408]
[1738519228656,4.9389,202.62,202.5,9.0348]
[1738519228854,27.01381573,202.66,202.5,9.0348]
[1738519229849,0.03790545,202.6,202.56,0.03775267]
[1738519230552,27.01381573,202.63,202.5,9.0348]
[1738519230755,0.03317801,202.6,202.5,9.0348]
[1738519230962,4.9399,202.57,202.56,0.03613741]
[1738519231160,0.03317801,202.6,202.56,0.03613741]
[1738519231751,0.03317801,202.6,202.45,27.01381573]
[1738519231959,27.04699374,202.6,202.41,27.01381573]
[1738519232352,4.94,202.57,202.41,27.01381573]
[1738519232549,27.01381573,202.64,202.41,27.01381573]
[1738519232754,96.37230487,202.71,202.53,4.9407]
[1738519233051,0.03396621,202.51,202.47,0.03638186]
[1738519233457,27.01381573,202.59,202.42,2.9522]
[1738519233762,27.01381573,202.55,202.42,2.9522]
[1738519233955,4.9421,202.48,202.47,0.03309989]
[1738519234160,0.03677937,202.51,202.47,0.03309989]
[1738519234661,4.9419,202.49,202.47,0.03309989]
[1738519235163,4.9419,202.49,202.47,9.989e-05]
[1738519236860,3.98677937,202.51,202.47,9.989e-05]
[1738519239065,4.9418,202.49,202.47,9.989e-05]
[1738519242368,31.0005951,202.51,202.36,0.90744555]
[1738519242568,3.98677937,202.51,202.37,0.90744555]
[1738519242968,3.95,202.51,202.37,0.90744555]
[1738519243267,3.95,202.51,202.36,27.01381573]
[1738519243467,3.95,202.51,202.37,5.85188272]
[1738519243669,3.95,202.51,202.38,0.90728272]
[1738519243873,0.03438047,202.46,202.44,4.943]
[1738519244072,3.95,202.51,202.45,0.90728272]
[1738519244264,3.95,202.51,202.42,0.03514129]
[1738519245572,0.03374843,202.49,202.42,0.03514129]
[1738519246073,0.03374843,202.49,202.42,0.94242401]
[1738519246273,3.95,202.51,202.43,7.12228272]
[1738519246473,3.95,202.51,202.44,0.90728272]
[1738519246772,4.9428,202.45,202.44,0.90728272]
[1738519246972,3.95,202.51,202.42,0.03514129]
[1738519247267,30.96381573,202.51,202.42,0.03514129]
[1738519247665,4.9431,202.44,202.42,0.03514129]
[1738519247872,4.9431,202.44,202.42,4.129e-05]
[1738519248063,27.01381573,202.43,202.42,4.129e-05]
[1738519248463,27.01381573,202.43,202.19,12.56489764]
[1738519248663,27.01381573,202.43,202.21,9.0355]
[1738519249272,7.7485,202.48,202.27,27.01381573]
[1738519249273,27.01381573,202.47,202.27,27.01381573]
[1738519249464,4.9438,202.41,202.28,0.90731378]
[1738519249669,27.01381573,202.47,202.28,0.90731378]
[1738519249869,27.01381573,202.47,202.35,0.0327558]
[1738519249870,0.03729893,202.39,202.35,0.0327558]
[1738519250971,3.0364,202.5,202.35,0.0327558]
[1738519251271,3.95,202.51,202.35,0.0327558]
[1738519251474,3.95,202.51,202.35,0.90731378]
[1738519251671,3.95,202.51,202.36,0.90731378]
[1738519251874,3.95,202.51,202.33,27.01381573]
[1738519252073,30.96381573,202.51,202.34,9.88841378]
[1738519252272,27.01381573,202.47,202.35,0.90649295]
[1738519252473,4.9448,202.37,202.28,4.9469]
[1738519252773,4.9448,202.37,202.29,0.90649295]
[1738519252976,27.01381573,202.43,202.3,0.90649295]
[1738519253174,27.01381573,202.43,202.31,0.90649295]
[1738519253367,4.97808737,202.35,202.32,0.90649295]
[1738519253572,0.03278737,202.35,202.26,0.90649295]
[1738519253871,4.9439,202.41,202.31,0.03767133]
[1738519254067,27.01381573,202.51,202.39,4.9441]
[1738519254273,27.01381573,202.51,202.4,0.90738812]
[1738519254472,4.9431,202.44,202.35,0.90738812]
[1738519254673,8.8931,202.44,202.43,0.03309005]
[1738519254870,8.8931,202.44,202.38,4.9444]
[1738519255176,3.95,202.44,202.41,0.03490755]
[1738519255671,4.9434,202.43,202.41,0.03490755]
[1738519258770,3.95,202.44,202.39,1.392e-05]
[1738519258975,3.95,202.44,202.31,4.946]
[1738519259277,3.95,202.44,202.3,2.9679]
[1738519259481,3.95,202.44,202.32,4.9458]
[1738519259681,3.95,202.44,202.3,2.9679]
[1738519259981,0.03329775,202.4,202.36,0.03774401]
[1738519260380,3.95,202.44,202.36,0.03774401]
[1738519260581,3.95,202.44,202.37,27.92101158]
[1738519260782,3.95,202.44,202.37,5.85189585]
[1738519260982,4.944,202.4,202.38,0.90719585]
[1738519261182,3.95,202.44,202.36,0.03774401]
[1738519261581,3.95,202.44,202.37,0.90679927]
[1738519261882,0.03230595,202.42,202.41,4.9438]
[1738519262074,0.03230595,202.42,202.41,0.90679927]
[1738519262274,0.03230595,202.42,202.33,27.01381573]
[1738519262474,0.03230595,202.42,202.39,0.03243204]
[1738519262985,0.03230595,202.42,202.4,0.9066443]
[1738519263184,0.03230595,202.42,202.41,0.9066443]
[1738519263185,4.97590595,202.42,202.41,0.9066443]
[1738519263484,0.03230595,202.42,202.39,0.03243204]
[1738519264594,3.95,202.44,202.39,0.03243204]
[1738519265089,3.95,202.44,202.39,0.93907634]
[1738519265290,4.9439,202.41,202.39,0.93907634]
[1738519265596,3.95,202.44,202.4,0.9066443]
[1738519265887,3.95,202.44,202.41,0.9066443]
[1738519266091,3.95,202.44,202.42,0.9066443]
[1738519266296,3.95,202.44,202.39,7.634e-05]
[1738519266788,4.9439,202.41,202.39,7.634e-05]
[1738519267690,0.03400574,202.42,202.39,7.634e-05]
[1738519268889,5.74e-06,202.42,202.39,0.9073695]
[1738519269085,5.74e-06,202.42,202.4,5.85149316]
[1738519269289,5.74e-06,202.42,202.41,0.90729316]
[1738519269894,27.01381573,202.55,202.41,0.90654156]
[1738519270093,27.01381573,202.59,202.41,0.90654156]
[1738519270293,27.01381573,202.59,202.42,3.86454156]
[1738519270596,4.9409,202.54,202.43,0.90654156]
[1738519270786,27.01381573,202.63,202.45,27.01381573]
[1738519270993,27.01381573,202.67,202.46,0.90654156]
[1738519271189,3.94,202.63,202.47,0.90654156]
[1738519271398,0.03707288,202.51,202.48,0.90654156]
[1738519271587,0.03707288,202.51,202.49,0.90654156]
[1738519271791,27.01381573,202.59,202.44,4.9432]
[1738519272098,27.01381573,202.59,202.45,0.90606771]
[1738519272293,0.03137767,202.51,202.48,0.03306091]
[1738519272599,0.03137767,202.51,202.49,0.90606771]
[1738519272797,3.94,202.63,202.5,5.84786771]
[1738519272998,3.94,202.63,202.51,0.90606771]
[1738519273198,27.01381573,202.58,202.43,81.18533997]
[1738519273800,27.01381573,202.58,202.44,0.90602963]
[1738519273991,27.01381573,202.62,202.45,0.90602963]
[1738519274189,0.03219049,202.53,202.48,0.03256123]
[1738519274392,0.03219049,202.53,202.49,0.90602963]
[1738519274701,4.9413,202.52,202.5,0.90602963]
[1738519274999,0.03219049,202.53,202.43,81.18533997]
[1738519275299,0.03219049,202.53,202.46,126.6693181]
[1738519275300,27.01381573,202.5,202.46,126.6693181]
[1738519275494,27.01381573,202.5,202.46,112.5986181]
[1738519275694,4.9424,202.48,202.46,112.5986181]
[1738519275903,5.78,202.56,202.47,0.90605654]
[1738519276103,27.01381573,202.58,202.47,0.90605654]
[1738519276307,4.9417,202.51,202.47,0.90605654]
[1738519276594,27.01381573,202.58,202.47,0.90605654]
[1738519276804,0.03219399,202.55,202.5,0.03353877]
[1738519277303,4.9414,202.52,202.5,0.03353877]
[1738519277491,4.9414,202.52,202.5,3.877e-05]
[1738519277895,4.9423,202.48,202.47,9.273e-05]
[1738519278098,0.03219399,202.55,202.47,9.273e-05]
[1738519278295,27.01381573,202.54,202.47,9.273e-05]
[1738519278502,27.01381573,202.54,202.32,27.01381573]
[1738519278893,27.01381573,202.54,202.36,27.01381573]
[1738519279101,4.5999,202.57,202.4,27.01381573]
[1738519279295,30.95381573,202.63,202.44,27.01381573]
[1738519279492,3.94,202.63,202.48,27.01381573]
[1738519279697,3.94,202.63,202.49,0.90272208]
[1738519279905,3.94,202.63,202.52,27.01381573]
[1738519280101,3.94,202.63,202.48,27.01381573]
[1738519280308,3.94,202.63,202.49,0.90332759]
[1738519280504,5.24811373,202.62,202.46,0.90332759]
[1738519280699,0.03183631,202.58,202.53,0.03535375]
[1738519281304,0.03183631,202.58,202.53,0.93852326]
[1738519282197,0.03183631,202.58,202.53,27.04916948]
[1738519282405,0.03183631,202.58,202.54,0.90316951]
[1738519282798,0.03183631,202.58,202.55,0.90316951]
[1738519283004,4.94,202.57,202.56,0.90316951]
[1738519283204,0.03183631,202.58,202.53,2.326e-05]
[1738519283402,27.01381573,202.56,202.53,2.326e-05]
[1738519283603,4.9407,202.54,202.53,2.326e-05]
[1738519284099,0.03183631,202.58,202.53,2.326e-05]
[1738519285807,0.03183631,202.58,202.56,4.9405]
[1738519286107,0.03183631,202.58,202.53,2.326e-05]
[1738519286307,0.03183631,202.58,202.53,4.94112326]
[1738519286505,0.03183631,202.58,202.53,2.326e-05]
[1738519287005,0.03183631,202.58,202.56,4.9403]
[1738519287201,0.03183631,202.58,202.53,2.326e-05]
[1738519290707,27.01381573,202.57,202.53,2.326e-05]
[1738519290909,4.9411,202.54,202.53,2.326e-05]
[1738519291506,4.744,202.56,202.35,4.9455]
[1738519291706,27.01381573,202.52,202.33,9.2941]
[1738519291911,27.01381573,202.52,202.34,0.9884353]
[1738519292107,4.9429,202.47,202.37,4.945]
[1738519292311,31.75781573,202.56,202.36,27.01381573]
[1738519292511,4.744,202.56,202.36,27.01381573]
[1738519292712,4.9415,202.53,202.45,4.9432]
[1738519293012,3.0457,202.56,202.41,3.1279]
[1738519293213,3.0457,202.56,202.44,0.03635862]
[1738519293214,0.03343982,202.48,202.44,0.03635862]
[1738519293913,4.9431,202.46,202.44,0.03635862]
[1738519294113,4.9431,202.46,202.44,5.862e-05]
[1738519294317,3.95,202.46,202.34,0.9884353]
[1738519294814,27.01381573,202.44,202.28,3.1279]
[1738519295510,4.9455,202.36,202.28,3.1279]
[1738519295717,0.03279548,202.38,202.34,0.03532272]
[1738519296613,0.03279548,202.38,202.36,4.9453]
[1738519296914,3.95,202.46,202.36,27.01381573]
[1738519297109,3.95,202.46,202.4,4.9444]
[1738519297314,3.95,202.46,202.36,27.01381573]
[1738519297510,3.95,202.46,202.32,27.01381573]
[1738519297708,3.95,202.46,202.28,31.13044422]
[1738519297915,27.01381573,202.43,202.28,0.98872849]
[1738519298117,4.7186,202.42,202.29,135.75965521]
[1738519298316,4.9467,202.31,202.29,135.75965521]
[1738519298517,0.0311524,202.39,202.29,135.75965521]
[1738519298713,0.0311524,202.39,202.33,0.0362617]
[1738519298911,4.7186,202.42,202.33,0.0362617]
[1738519299313,0.03680588,202.38,202.33,0.0362617]
[1738519299818,0.03680588,202.38,202.32,27.01381573]
[1738519300019,0.03680588,202.38,202.34,4.9459]
[1738519300217,0.03680588,202.38,202.33,0.03365023]
[1738519301717,4.9453,202.37,202.33,0.03365023]
[1738519301911,0.03680588,202.38,202.33,0.03365023]
[1738519302315,0.03680588,202.38,202.33,4.97985023]
[1738519302513,0.03680588,202.38,202.33,0.03365023]
[1738519302717,0.03680588,202.38,202.36,169.69956902]
[1738519302922,3.95,202.46,202.36,169.69956902]
[1738519303317,4.9451,202.38,202.36,169.69956902]
[1738519303620,4.9451,202.38,202.36,111.29652569]
[1738519303815,3.95,202.46,202.23,30.10001573]
[1738519303816,27.01381573,202.39,202.23,3.0862]
[1738519304420,0.03332885,202.33,202.29,0.03477003]
[1738519304917,4.9465,202.32,202.29,0.03477003]
[1738519305121,0.03332885,202.33,202.29,0.03477003]
[1738519305416,4.9469,202.3,202.29,0.03477003]
[1738519305617,4.9469,202.3,202.29,0.01337003]
[1738519305821,4.9466,202.32,202.29,0.01337003]
[1738519306125,0.03332885,202.33,202.29,0.01337003]
[1738519306422,4.9468,202.31,202.29,0.01337003]
[1738519307221,31.96061573,202.31,202.29,0.01337003]
[1738519307619,4.9468,202.31,202.29,0.01337003]
[1738519308019,0.03332885,202.33,202.29,0.01337003]
[1738519309225,0.03332885,202.33,202.31,4.9467]
[1738519309422,6.49680737,202.43,202.3,27.01381573]
[1738519310027,7.37e-06,202.4,202.34,27.01381573]
[1738519310228,7.37e-06,202.4,202.38,4.945]
[1738519310629,86.68739159,202.42,202.34,27.01381573]
[1738519310928,0.03368032,202.41,202.37,0.03169541]
[1738519311529,0.03368032,202.41,202.37,4.97679541]
[1738519311830,0.03368032,202.41,202.37,0.03169541]
[1738519313633,0.03368032,202.41,202.39,4.9446]
[1738519313931,54.68765127,202.57,202.41,27.01381573]
[1738519314125,51.85825127,202.55,202.41,27.01381573]
[1738519314529,51.85825127,202.55,202.37,27.01381573]
[1738519314731,51.85825127,202.55,202.42,4.9439]
[1738519314933,51.85825127,202.55,202.37,27.01381573]
[1738519315128,0.03355198,202.48,202.44,0.0350446]
[1738519315530,4.9432,202.46,202.44,0.0350446]
[1738519315835,3.98355198,202.48,202.44,0.0350446]
[1738519316833,3.98355198,202.48,202.37,3.0605]
[1738519317536,3.98355198,202.48,202.35,5.847]
[1738519317734,4.945,202.38,202.35,5.847]
[1738519318033,3.95,202.48,202.27,6.0656]
[1738519318233,27.01381573,202.45,202.39,6.26e-06]
[1738519318434,4.9445,202.4,202.39,6.26e-06]
[1738519320733,4.9477,202.27,202.22,6.3864]
[1738519320938,27.01381573,202.37,202.22,6.3864]
[1738519321133,2.8263,202.39,202.22,6.3864]
[1738519321333,3.9845,202.44,202.25,27.01381573]
[1738519321637,2.8324,202.5,202.29,27.01381573]
[1738519321837,4.944,202.42,202.3,3.0752]
[1738519322032,189.48525511,202.55,202.33,27.01381573]
[1738519322332,189.48525511,202.55,202.37,27.01381573]
[1738519322832,4.9412,202.54,202.38,3.1601]
[1738519323034,162.47143938,202.55,202.41,27.01381573]
[1738519323537,0.03593298,202.49,202.44,0.0375561]
[1738519323732,162.47143938,202.55,202.44,0.0375561]
[1738519323937,54.16885221,202.52,202.45,27.01381573]
[1738519324138,162.47143938,202.55,202.5,31.95571573]
[1738519324339,3.94,202.54,202.5,27.01381573]
[1738519324735,3.94,202.54,202.4,27.01381573]
[1738519325144,3.97295482,202.54,202.5,0.0365733]
[1738519325339,3.94,202.54,202.4,27.01381573]
[1738519325636,3.97551136,202.54,202.5,0.0371179]
[1738519325834,3.97551136,202.54,202.36,27.01381573]
[1738519326033,35.86601573,202.53,202.32,27.01381573]
[1738519326238,35.86601573,202.53,202.33,0.98848415]
[1738519326741,27.01381573,202.49,202.33,0.98848415]
[1738519326939,2.8944,202.48,202.33,0.98848415]
[1738519327342,0.03572734,202.43,202.39,0.0339936]
[1738519327635,0.03572734,202.43,202.4,27.01381573]
[1738519327839,6.8344,202.54,202.4,27.01381573]
[1738519327840,3.94,202.54,202.4,27.01381573]
[1738519328039,3.94,202.54,202.44,27.01381573]
[1738519328340,3.94,202.54,202.45,4.9432]
[1738519328542,3.94,202.54,202.44,27.01381573]
[1738519329141,0.03303262,202.51,202.47,0.03471243]
[1738519329336,4.97473262,202.51,202.47,0.03471243]
[1738519329641,0.03303262,202.51,202.33,0.98848415]
[1738519329836,4.9436,202.44,202.34,4.9458]
[1738519330041,30.95381573,202.54,202.35,27.01381573]
[1738519330443,30.95381573,202.54,202.33,0.98848415]
[1738519330938,4.9439,202.42,202.33,5.93438415]
[1738519331136,4.9439,202.42,202.41,0.03345954]
[1738519331640,4.945,202.38,202.33,0.98848415]
[1738519332144,4.9444,202.4,202.29,27.01381573]
[1738519332344,9.0445,202.45,202.33,0.03749947]
[1738519332846,9.946e-05,202.37,202.35,4.9455]
[1738519333345,52.19575978,202.47,202.33,27.01381573]
[1738519333644,52.19575978,202.47,202.37,27.01381573]
[1738519333837,52.19575978,202.47,202.42,4.9438]
[1738519334042,52.19575978,202.47,202.39,27.01381573]
[1738519334238,0.03467226,202.44,202.4,0.0356041]
[1738519334440,4.9438,202.43,202.4,0.0356041]
[1738519334744,0.03467226,202.44,202.4,0.0356041]
[1738519334939,0.03467226,202.44,202.29,27.01381573]
[1738519334940,4.9445,202.4,202.29,27.01381573]
[1738519335251,27.01381573,202.42,202.3,0.98863074]
[1738519335448,6.2998,202.39,202.3,0.98863074]
[1738519335648,3.0212,202.38,202.3,0.98863074]
[1738519336050,6.2998,202.39,202.3,0.98863074]
[1738519336248,7.984,202.41,202.34,4.9458]
[1738519336447,2.152e-05,202.36,202.33,27.01381573]
[1738519336652,2.152e-05,202.36,202.34,4.9458]
[1738519336853,2.152e-05,202.36,202.29,16.42916879]
[1738519337150,52.19575978,202.45,202.35,27.01381573]
[1738519337551,56.14575978,202.45,202.35,27.01381573]
[1738519337752,56.14575978,202.45,202.39,27.01381573]
[1738519337952,56.14575978,202.45,202.43,27.01381573]
[1738519338154,56.14575978,202.45,202.43,31.95731573]
[1738519338353,0.03173717,202.44,202.43,31.95731573]
[1738519338556,0.03173717,202.44,202.4,0.03170353]
[1738519338958,69.29252343,202.41,202.4,0.03170353]
[1738519339452,69.29252343,202.41,202.29,0.98867961]
[1738519339660,4.9461,202.33,202.29,0.98867961]
[1738519339849,3.1784,202.4,202.29,0.98867961]
[1738519340558,4.9452,202.37,202.29,0.98867961]
[1738519340858,0.03473898,202.37,202.32,0.03230329]
[1738519341059,0.03473898,202.37,202.35,4.9455]
[1738519341655,0.03473898,202.37,202.33,27.01381573]
[1738519341855,0.03473898,202.37,202.32,0.03230329]
[1738519342357,4.946,202.34,202.32,0.03230329]
[1738519342557,12.5013,202.33,202.29,0.98867961]
[1738519342959,12.5013,202.33,202.2,27.01381573]
[1738519343149,9.5147,202.33,202.24,27.01381573]
[1738519343351,4.9458,202.35,202.28,27.01381573]
[1738519343551,46.69304292,202.43,202.18,27.01381573]
[1738519344056,0.03440459,202.34,202.29,0.03520431]
[1738519344357,0.03440459,202.34,202.14,27.01381573]
[1738519344564,27.01381573,202.31,202.14,27.01381573]
[1738519344860,5.918,202.3,202.14,27.01381573]
[1738519345051,5.918,202.3,202.19,4.9494]
[1738519345256,5.918,202.3,202.14,27.01381573]
[1738519345461,4.6496104,202.28,202.14,27.01381573]
[1738519345663,11.4861499,202.27,202.22,0.03317597]
[1738519345860,5.81196077,202.2,202.14,27.01381573]
[1738519346458,5.81196077,202.15,202.14,27.01381573]
[1738519346657,5.81196077,202.15,202.1,31.96541573]
[1738519346963,5.81196077,202.15,202.1,27.01381573]
[1738519347262,5.81196077,202.15,202.13,4.9509]
[1738519347263,8.996e-05,202.14,202.13,4.9509]
[1738519347560,5.918,202.3,202.11,0.89845932]
[1738519347855,27.01381573,202.27,202.11,0.89845932]
[1738519348159,1.2363959,202.26,202.1,27.01381573]
[1738519348359,6.62889037,202.25,202.11,0.89837451]
[1738519348555,15.41154674,202.24,202.11,0.89837451]
[1738519348760,0.03336978,202.2,202.16,0.03125861]
[1738519348960,3.93624056,202.19,202.16,0.03125861]
[1738519349158,1.034e-05,202.2,202.18,27.01381573]
[1738519349363,4.6508138,202.27,202.18,27.01381573]
[1738519349563,9.52107333,202.26,202.18,27.01381573]
[1738519349769,6.30663206,202.25,202.18,27.01381573]
[1738519350058,1.23638926,202.24,202.18,27.01381573]
[1738519350262,1.9782228,202.28,202.24,4.9482]
[1738519350459,2.9317,202.32,202.22,27.01381573]
[1738519350659,10.29812448,202.32,202.22,27.01381573]
[1738519350958,4.95e-05,202.23,202.22,27.01381573]
[1738519351160,7.36662559,202.3,202.22,27.01381573]
[1738519351361,4.6508138,202.37,202.28,27.01381573]
[1738519351560,6.6291822,202.37,202.34,4.9457]
[1738519351760,1.97835321,202.36,202.34,4.9457]
[1738519351960,1.97835321,202.41,202.32,27.01381573]
[1738519352162,1.97835321,202.42,202.36,27.01381573]
[1738519352355,4.6508138,202.38,202.36,27.01381573]
[1738519352658,0.03692539,202.39,202.34,0.03210155]
[1738519352964,2.539e-05,202.39,202.38,27.01381573]
[1738519353868,5.9531,202.51,202.38,27.01381573]
[1738519354063,3.1621,202.5,202.34,0.03210155]
[1738519354362,3.1621,202.5,202.32,27.01381573]
[1738519354562,27.01381573,202.48,202.28,27.01381573]
[1738519355058,0.03511166,202.4,202.36,0.03298969]
[1738519355263,0.03511166,202.4,202.28,27.01381573]
[1738519355455,0.03511166,202.4,202.24,27.01381573]
[1738519355860,27.01381573,202.44,202.24,27.01381573]
[1738519356364,32.31381573,202.48,202.28,27.01381573]
[1738519356668,0.03542668,202.36,202.32,0.03674915]
[1738519357170,27.01381573,202.44,202.24,27.01381573]
[1738519357671,0.03298694,202.36,202.32,0.0326889]
[1738519357871,0.03298694,202.36,202.2,27.01381573]
[1738519358260,27.01381573,202.44,202.24,27.01381573]
[1738519358766,27.01381573,202.48,202.28,27.01381573]
[1738519359070,27.01381573,202.48,202.3,4.9467]
[1738519359367,0.03331725,202.36,202.32,0.03468256]
[1738519359759,27.01381573,202.48,202.28,27.01381573]
[1738519360270,0.03692236,202.36,202.32,0.0357651]
[1738519360666,4.16727289,202.35,202.28,27.01381573]
[1738519361169,4.16727289,202.35,202.32,0.03732843]
[1738519361468,4.16727289,202.34,202.32,0.03732843]
[1738519361671,4.9461,202.33,202.32,0.03732843]
[1738519362171,4.9464,202.32,202.22,0.68891301]
[1738519362474,6.0549,202.32,202.22,0.68891301]
[1738519362668,6.0549,202.32,202.18,27.01381573]
[1738519363171,3.1099,202.31,202.14,108.95486979]
[1738519363365,1.23663147,202.31,202.22,27.01381573]
[1738519363560,6.3663,202.44,202.27,27.01381573]
[1738519363762,1.23633218,202.43,202.27,27.01381573]
[1738519363962,1.23633218,202.42,202.31,27.01381573]
[1738519364165,1.23633218,202.43,202.31,27.01381573]
[1738519364367,1.23633218,202.42,202.31,27.01381573]
[1738519364564,1.23633218,202.43,202.35,27.01381573]
[1738519364781,1.23633218,202.43,202.39,27.01381573]
[1738519365072,3.1099,202.49,202.35,27.01381573]
[1738519365267,4.924,202.94,202.34,0.03334075]
[1738519365465,49.99533337,202.68,202.62,27.01381573]
[1738519365663,49.99533337,202.68,202.67,27.01381573]
[1738519365970,49.99533337,202.68,202.51,27.01381573]
[1738519366267,51.23085123,202.68,202.64,27.01381573]
[1738519366568,1.23551786,202.68,202.64,27.01381573]
[1738519366970,1.23551786,202.68,202.64,415.42851314]
[1738519367364,1.23551786,202.68,202.65,5.03252819]
[1738519367571,1.23551786,202.68,202.66,5.03252819]
[1738519367869,1.23551786,202.68,202.67,5.03215124]
[1738519368061,6.3558,202.77,202.65,12.32987796]
[1738519368264,6.3558,202.77,202.71,27.01381573]
[1738519368963,6.3558,202.77,202.72,13.09394365]
[1738519369169,11.2913,202.77,202.72,3.50774365]
[1738519369473,6.38890702,202.77,202.72,0.03798271]
[1738519369668,6.38890702,202.77,202.62,27.01381573]
[1738519369965,6.3558,202.77,202.63,5.02200791]
[1738519370264,4.9371,202.7,202.58,27.01381573]
[1738519370471,6.3558,202.77,202.59,5.02206508]
[1738519370670,6.3558,202.77,202.6,5.02206508]
[1738519370876,0.03721912,202.7,202.66,0.03362451]
[1738519371170,0.03721912,202.7,202.58,27.01381573]
[1738519371371,0.03721912,202.7,202.62,27.01381573]
[1738519371770,6.3558,202.77,202.62,27.01381573]
[1738519372074,27.01381573,202.75,202.54,27.01381573]
[1738519372374,0.03272085,202.72,202.55,4.93178651]
[1738519372571,0.03272085,202.72,202.54,27.01381573]
[1738519372875,27.01381573,202.75,202.55,4.93193654]
[1738519373169,27.01381573,202.71,202.5,27.01381573]
[1738519373375,5.82,202.7,202.51,12.8241825]
[1738519373669,5.82,202.7,202.52,4.9324449]
[1738519373670,4.9407,202.56,202.52,4.9324449]
[1738519373879,0.03121101,202.63,202.47,6.10341765]